Cogmind - Beta 10.2 @@@ ROGUE MODE // 2021.09.10 @ 20:11:27 Player: Storyteller Result: Destroyed by G-34 Mercenary with Small Laser Performance ------------- Evolutions (1) 500 Regions Visited (3) 600 Robots Destroyed (21) 105 Value Destroyed (488) 488 Prototype IDs (2) 40 Alien Tech Used (0) 0 Bonus (0) 0 TOTAL SCORE: 1733 Bonus ------- None Cogmind --------- Core Integrity 0/400 Matter 300/300 Energy 100/100 System Corruption 0% Temperature Cool (6) Movement Core (100) Ox1 Location -9/Materials Parts ------- > --- POWER (1) -------- (None) > --- PROPULSION (4) --- (None) > --- UTILITY (2) ------ Small Storage Unit > --- WEAPON (2) ------- (None) > --- INVENTORY (6) ---- Light Ion Engine Light Ion Engine Light Ion Engine Flight Unit Flight Unit Improved EM Shotgun Peak State ------------ > --- POWER ------------ Light Ion Engine > --- PROPULSION ------- Aluminum Leg Improved Aluminum Leg Flight Unit Flight Unit > --- UTILITY ---------- Small Storage Unit ECM Suite > --- WEAPON ----------- Beam Rifle Beam Rifle > --- INVENTORY -------- Ion Engine Light Ion Engine Aluminum Leg Improved EM Shotgun [Rating: 12] Favorites ----------- Power Ion Engine Engine Ion Engine Propulsion Aluminum Leg Treads Light Treads Leg Aluminum Leg Flight Unit Flight Unit Utility Small Storage Unit Device ECM Suite Storage Small Storage Unit Processor Signal Interpreter Weapon Small Laser Energy Gun Small Laser Ballistic Gun Light Assault Rifle Build | -11 -10 -10 -9 ------- Run | Scr Mat Min Mat Slots Evolved 2 | . . . 2 Power . | . . . . Propulsion 2 | . . . 2 Utility . | . . . . Weapon . | . . . . Parts Attached 37 | 6 5 1 25 Power 4 | 1 . . 3 Engine 4 | 1 . . 3 Core . | . . . . Reactor . | . . . . Propulsion 18 | 2 1 1 14 Treads 2 | . . . 2 Leg 10 | 2 1 . 7 Wheel . | . . . . Hover . | . . . . Flight 6 | . . 1 5 Utility 5 | 1 2 . 2 Device 2 | . 1 . 1 Storage 2 | 1 . . 1 Processor 1 | . 1 . . Hackware . | . . . . Protection . | . . . . Artifact . | . . . . Weapon 10 | 2 2 . 6 Energy Gun 8 | 2 2 . 4 Energy Cannon . | . . . . Ballistic Gun 2 | . . . 2 Ballistic Cannon . | . . . . Launcher . | . . . . Special Weapon . | . . . . Impact Weapon . | . . . . Slashing Weapon . | . . . . Piercing Weapon . | . . . . Special Melee Weapon . | . . . . Unidentified Prototypes . | . . . . Parts Lost 16 | . 2 1 13 Power 2 | . . . 2 Propulsion 8 | . . 1 7 Utility 1 | . . . 1 Weapon 5 | . 2 . 3 Highest Loss Streak 7 | . 1 2 7 Average Slot Usage (%) 89 | . 97 94 85 Engine 11 | . 14 14 10 Leg 23 | . 27 14 23 Flight 7 | . . 9 10 Device 9 | . 5 14 10 Storage 12 | . 14 14 10 Processor 2 | . 8 . . Energy Gun 17 | . 27 28 10 Ballistic Gun 4 | . . . 7 Naked Turns 6 | . . . 6 Heaviest Build 16 | 13 13 12 16 Greatest Support 43 | 20 20 10 43 Greatest Overweight (x) 4 | 1 . 2 4 Average Overweight (x) . | . . 1 . Largest Inventory Capacity 6 | 6 6 6 6 Average Capacity 5 | 5 6 6 5 Most Carried 6 | 1 6 6 6 Average Carried 4 | . 3 5 5 Final Capacity 6 | 6 6 6 6 Final Carried 6 | 1 4 6 6 Class Distribution -------------------- 56% | Mutant 39% | Scavenger-Mutant 4% | Scavenger-Sprinter Dominant Class ---------------- Mutant | -10/Materials Mutant | -10/Mines Scavenger-Mutant | -9/Materials Resources | -11 -10 -10 -9 ----------- Run | Scr Mat Min Mat Matter Collected 573 | 206 83 16 268 Remotely . | . . . . Salvage Created 709 | . 139 56 514 Parts 46 | . 7 5 34 Haulers Intercepted . | . . . . Recyclers Shooed 3 | . . 2 1 Parts Field Recycled . | . . . . Retrieved Matter . | . . . . Parts Self-Destructed . | . . . . Prevented . | . . . . Kills | -11 -10 -10 -9 ------- Run | Scr Mat Min Mat Combat Hostiles Destroyed 18 | . 2 3 13 Guns 18 | . 2 3 13 Classes Destroyed 6 | . 2 1 3 Worker 1 | . . . 1 Recycler 1 | . . . 1 Watcher 1 | . 1 . . Swarmer 9 | . . 3 6 Grunt 6 | . 2 . 4 Sentry 3 | . . . 3 Best Kill Streak 6 | . 1 3 6 Combat Bots Only 5 | . 1 3 5 Max Kills in Single Turn 2 | . 1 2 2 Gunslinging 1 | . . 1 1 Exploded . | . . . . Melee . | . . . . Uniques/NPCs Destroyed . | . . . . Combat | -11 -10 -10 -9 -------- Run | Scr Mat Min Mat Damage Taken 1755 | . 366 47 1342 Core 463 | . 62 . 401 Absorbed by Shields . | . . . . Core Remaining (%) 87 | 100 . 75 . Volleys Fired 78 | . 13 7 58 Largest 2 | . 2 2 2 Hottest 112 | . 90 80 112 Shots Fired 142 | . 23 14 105 Gun 142 | . 23 14 105 Cannon . | . . . . Launcher . | . . . . Special . | . . . . Kinetic 53 | . . . 53 Thermal 76 | . 10 14 52 Explosive . | . . . . Electromagnetic 13 | . 13 . . Robot Hit Streak 16 | . 4 6 16 Robot Miss Streak 6 | . 3 2 6 Penetration Max . | . . . . Secondary Targets 5 | . . 1 4 Max Gunslinging Chain 1 | . . 1 1 Shots Hit Robots 87 | . 13 9 65 Core Hits 42 | . 6 5 31 Critical Hits 1 | . . . 1 Critical Kills 1 | . . . 1 Critical Parts Destroyed . | . . . . Melee Attacks . | . . . . Impact . | . . . . Slashing . | . . . . Piercing . | . . . . Sneak Attacks . | . . . . Combat Hostiles . | . . . . Follow-up Attacks . | . . . . Damage Inflicted 1001 | . 206 89 706 Guns 941 | . 146 89 706 Cannons . | . . . . Explosions 60 | . 60 . . Melee . | . . . . Ramming . | . . . . Kinetic 274 | . . . 274 Thermal 607 | . 86 89 432 Explosive . | . . . . Electromagnetic 120 | . 120 . . Impact . | . . . . Slashing . | . . . . Piercing . | . . . . Highest Corruption . | . . . . Average Corruption . | . . . . Corruption Purged . | . . . . Overload Shots . | . . . . Overflow Damage 6 | . 6 . . Projectiles . | . . . . Explosions 6 | . 6 . . Melee . | . . . . Knockbacks . | . . . . Impact . | . . . . Kinetic . | . . . . Secondary . | . . . . Self-Inflicted Damage 58 | . 58 . . Shots 2 | . 2 . . Rammed . | . . . . Targets Rammed . | . . . . Kicked . | . . . . Crushed . | . . . . Highest Temperature 270 | . 117 69 270 Average Temperature 67 | . 42 32 83 Received Heat Transfer 564 | . 84 . 480 Siege Activations . | . . . . Robots Corrupted . | . . . . Combat Hostiles . | . . . . Parts Fried . | . . . . Impact Corruptions . | . . . . Robots Melted . | . . . . Combat Hostiles . | . . . . Parts Melted 3 | . . 1 2 Heat Transferred 1450 | . 174 200 1076 Parts Sabotaged . | . . . . Parts Stolen . | . . . . Parts Stripped . | . . . . Power Chain Reactions 2 | . 2 . . Missiles Intercepted . | . . . . Alert | -11 -10 -10 -9 ------- Run | Scr Mat Min Mat Peak Influence 240 | . 219 160 240 Initial 85 | . . 85 62 Average 96 | . 65 158 105 Maximum Alert Level 1 | . 1 . 1 Low Security (%) 95 | 100 97 100 93 Level 1 4 | . 2 . 6 Level 2 . | . . . . Level 3 . | . . . . Level 4 . | . . . . Level 5 . | . . . . High Security . | . . . . Max Security . | . . . . Squads Dispatched 7 | . 3 . 4 Investigation 1 | . . . 1 Extermination . | . . . . Reinforcement 6 | . 3 . 3 Assault . | . . . . Garrison . | . . . . Intercept . | . . . . Construction Impeded . | . . . . Haulers Reinforced . | . . . . Stealth | -11 -10 -10 -9 --------- Run | Scr Mat Min Mat Distress Signals 3 | . . . 3 Communications Jammed . | . . . . Distress Signals . | . . . . Times Spotted 49 | . 12 2 35 Peak Tracking Total 10 | . 6 . 10 Tactical Retreats 4 | . 1 . 3 Traps | -11 -10 -10 -9 ------- Run | Scr Mat Min Mat Traps Triggered 3 | . 1 . 2 Indirectly . | . . . . Trap Hack Attempts . | . . . . Triggered . | . . . . Disarmed . | . . . . Reprogrammed . | . . . . Reused . | . . . . Traps Extracted . | . . . . Installed . | . . . . Triggered . | . . . . Machines | -11 -10 -10 -9 ---------- Run | Scr Mat Min Mat Machines Disabled 1 | . 1 . . Max in Single Turn 1 | . 1 . . Machines Sabotaged . | . . . . Garrisons Compromised . | . . . . Overloaded Fab Kills . | . . . . Fab Network Shutdowns . | . . . . Hacking | -11 -10 -10 -9 --------- Run | Scr Mat Min Mat Machines Accessed 5 | . 1 . 4 Terminals 3 | . . . 3 Fabricators . | . . . . Repair Stations 1 | . 1 . . Recycling Units . | . . . . Scanalyzers 1 | . . . 1 Garrison Access . | . . . . Total Hacks 9 | . 2 . 7 Successful 7 | . 2 . 5 Failed 2 | . . . 2 Catastrophic . | . . . . Database Lockouts . | . . . . Manual . | . . . . Terminals 6 | . . . 6 Fabricators . | . . . . Repair Stations 2 | . 2 . . Recycling Units . | . . . . Scanalyzers 1 | . . . 1 Garrison Access . | . . . . Terminal Hacks 4 | . . . 4 Record 2 | . . . 2 Prototype ID Bank 1 | . . . 1 Emergency Access Points 1 | . . . 1 Fabricator Hacks . | . . . . Repair Station Hacks 2 | . 2 . . Scan Component 1 | . 1 . . Repair 1 | . 1 . . Recycling Unit Hacks . | . . . . Scanalyzer 1 | . . . 1 Insert Component 1 | . . . 1 Garrison Access Hacks . | . . . . Unauthorized Hacks . | . . . . Terminals . | . . . . Fabricators . | . . . . Repair Stations . | . . . . Recycling Units . | . . . . Scanalyzers . | . . . . Garrison Access . | . . . . Data Cores Recovered . | . . . . Used . | . . . . Hacking Detections 1 | . . . 1 Full Trace Events . | . . . . Feedback Events . | . . . . Feedback Blocked . | . . . . Robot Schematics Acquired . | . . . . Robots Built . | . . . . Matter . | . . . . Time . | . . . . Total Robot Build Rating . | . . . . Part Schematics Acquired . | . . . . Parts Built . | . . . . Matter . | . . . . Time . | . . . . Total Part Build Rating . | . . . . Parts Repaired 1 | . 1 . . Time 26 | . 26 . . Parts Recycled . | . . . . Recycled Matter . | . . . . Retrieved Matter . | . . . . Retrieved Components . | . . . . Parts Scanalyzed . | . . . . Part Schematics Acquired . | . . . . Parts Damaged . | . . . . Bothacking | -11 -10 -10 -9 ------------ Run | Scr Mat Min Mat Used RIF Installer . | . . . . Robots Hacked . | . . . . Non-combat . | . . . . Combat . | . . . . Robot Hacks Applied . | . . . . Relay Couplers Released . | . . . . Robots Rewired . | . . . . Allies Hacked . | . . . . Hacks Repelled . | . . . . Allies | -11 -10 -10 -9 -------- Run | Scr Mat Min Mat Total Allies . | . . . . Largest Group . | . . . . Highest-Rated Group . | . . . . Highest-Rated Ally . | . . . . Total Orders . | . . . . Ally Attacks . | . . . . Total Damage . | . . . . Kills . | . . . . Allies Corrupted . | . . . . Allies Melted . | . . . . Intel | -11 -10 -10 -9 ------- Run | Scr Mat Min Mat Robot Analysis Total . | . . . . Derelict Logs Recovered . | . . . . Drone Launches . | . . . . Drone Recoveries . | . . . . Exploration | -11 -10 -10 -9 ------------- Run | Scr Mat Min Mat Turns Passed 1506 | 64 389 171 882 Spaces Moved 953 | 47 253 94 559 Core 55 | 5 . . 50 Treads 24 | . . . 24 Legs 744 | 42 253 93 356 Wheels . | . . . . Hover . | . . . . Flight 130 | . . 1 129 Fastest Speed 31 | 50 120 150 31 Average Speed 115 | 114 120 150 106 Slowest Speed 250 | 120 120 210 250 Overloaded Moves . | . . . . Propulsion Burnouts . | . . . . Robots Hopped 1 | . . . 1 Cave-ins Triggered . | . . . . Exploration Rate (%) 29 | 3 45 20 51 Regions Visited 3 Branch Regions 1 Pre-discovered Areas . | . . . . Known Exits Taken . | . . . . Unknown Exits Taken 3 | 1 1 1 . Scrap Searched . | . . . . Spaces Dug . | . . . . Terrain Destroyed 4 | . 4 . . Melee . | . . . . Projectile . | . . . . AOE 4 | . 4 . . Terrain Rammed . | . . . . Walls Destroyed . | . . . . Machines Disabled . | . . . . Actions | -11 -10 -10 -9 --------- Run | Scr Mat Min Mat Total 1222 | 54 314 109 745 Wait 125 | 1 38 4 82 Move 948 | 46 252 93 557 Hop 1 | . . . 1 Pick Up 19 | 1 5 3 10 Fast Attach 25 | 6 3 1 15 Attach 8 | . 2 . 6 Detach 4 | . 1 . 3 Swap 4 | . . . 4 Drop 10 | . . 1 9 Fire 78 | . 13 7 58 Melee . | . . . . Ram . | . . . . Kick . | . . . . Crush . | . . . . Escape Stasis . | . . . . Rewire . | . . . . Trap . | . . . . Miscellaneous . | . . . . Route ------- -11/Scrapyard -10/Materials -10/Mines -9/Materials (discovered 3 exits: [*Mat x2] / [*Min]) History --------- Turn | Location | Event 5 | -11/Scrapyard | Discovered new exit (range 15) 65 | -11/Scrapyard | Entered Materials 228 | -10/Materials | Repaired Aluminum Leg 255 | -10/Materials | Discovered new exit (range 15) 337 | -10/Materials | Build established: Mutant 454 | -10/Materials | Entered Mines 586 | -10/Mines | Discovered new exit (range 14) 625 | -10/Mines | Entered Materials 625 | -9/Materials | Evolved 2 slots: Propulsion x2 951 | -9/Materials | Released all parts (7) 1009 | -9/Materials | Discovered new exit (range 16) 1276 | -9/Materials | Lost 3 parts (2n1w) 1294 | -9/Materials | Discovered new exit (range 11) 1460 | -9/Materials | Core integrity fell below 50% 1483 | -9/Materials | Discovered new exit (range 16) 1488 | -9/Materials | Core integrity fell below 20% 1507 | -9/Materials | Destroyed by G-34 Mercenary with Small Laser Last Messages --------------- 01396_ Dropped Ion Engine. 01399_ K-01 Serf collects debris. 01402_ K-01 Serf cleans the Fusion Modulator. 01405_ W-16 Scout sends out distress signal. 01406_ K-01 Serf collects debris. 01408_ Beam Rifle destroyed. 01411_ K-01 Serf cleans the Fusion Modulator. 01416_ Acquired Ion Engine. 01435_ R-06 Scavenger inserts Ion Engine into recycling unit. 01438_ R-06 Scavenger inserts Med. Matter Pod into recycling unit. 01446_ Flight Unit destroyed. 01449_ Beam Rifle destroyed. 01452_ O-16 Technician: "IFF HANDSHAKE FAILED. SECURING TERMINAL." 01455_ Flight Unit destroyed. 01456_ ALERT: Hostiles spotted, dispatching reinforcements to Terminal M005. 01457_ Flight Unit destroyed. 01462_ Ion Engine destroyed. 01483_ EXIT=FOUND 01485_ ECM Suite destroyed. Map ----- +----------------------------------------------------+ | ???????# #????????????????????? | | ???????# #????????????????????? | | ???????# #????????????????????? | | ???????# #????????????????????? | | ???????# ############?????????? | | # ????# ????????? | | # ??# ????????? | | # # ????????? | | # + ????????? | | # # ????????? | | # ??# ############?????????? | | # ????# ########?????????????? | | ???????# ## ????????? | | ???????# / ????????? | | ???????# ## ????????? | | ???????# ##### ##?????????????? | | ???????# #?????#??????????????? | | ???????# #????????????????????? | | ???????# #????????????????????? | | ???????# #????????????????????? | | ???????#gg #????????????????????? | | ???????# #????????????????????? | | ???????# g +????????????????????? | | ???????# #????????????????????? | | ???????# #????????????????????? | | ???????#@ #????????????????????? | | ???????# #????????????????????? | | ???????# #????????????????????? | | ???????# #????????????????????? | | ???????# +????????????????????? | | ???????# #????????????????????? | | ???????# < #????????????????????? | | ???????# #????????????????????? | | ???????#####????????????????????? | | ????????????????????????????????? | | ????????????????????????????????? | | ????????????????????????????????? | | ????????????????????????????????? | | ????????????????????????????????? | | ????????????????????????????????? | | ????????????????????????????????? | | ????????????????????????????????? | | ????????????????????????????????? | | ????????????????????????????????? | | ????????????????????????????????? | | ????????????????????????????????? | | ????????????????????????????????? | | ????????????????????????????????? | | ????????????????????????????????? | | ????????????????????????????????? | +----------------------------------------------------+ Best States ------------- Heat Dissipation 28 Energy Generation 10 Energy Capacity 250 Matter Stores 300 Matter Capacity 300 Sight Range 16 Terrain Scan Density 10 ECM Strength 1 Evasion (%) 63 Recoil Reduction 2 Item Schematics ----------------- None Robot Schematics ------------------ None Fabricated ------------ Nothing Alien Tech Used ----------------- None Achievements -------------- None Challenges ------------ None Game ------ Seed AutogunMissileVibroblade Manual? 0 Play Time 00:20:30 Cumulative 20.2 hours Start 2021.09.10 @ 19:53:16 End 2021.09.10 @ 20:11:27 Sessions 1 Manual Loads 0 Difficulty Rogue Special Mode None Game No. 38 Rogue 38 Adventurer 0 Explorer 0 Win Type - Total 0 Types 0/0/0/0/0/0/0/0/0 Lore% 10 Gallery% 17 Achievement% 14 Wizard Run 0 Options --------- ASCII 1 Keyboard 1 Movement Numpad Keybinds 0 Fullscreen 1 Font 18/Terminus Map View 76x50 Tactical HUD 1 Map Filters NONE Filters NONE Steam 1 RUN: 02ec122c-9a21-413f-ad54-050d9bc9e0a6